fUSD/lending_fUSD_20240608
["ID","MTS","AMOUNT","RATE_DAILY","PERIOD"]
[328854899,1717890656914,-504.6349369,0.00029863,4]
[328854900,1717890656924,-500.0,0.00029863,4]
[328854901,1717890656934,-500.0,0.00029863,4]
[328854902,1717890656943,-500.0,0.00029863,4]
[328854903,1717890656954,-516.76865242,0.00029863,4]
[328854904,1717890656964,-500.0,0.00029863,4]
[328854905,1717890656974,-505.28509711,0.00029863,4]
[328854906,1717890656985,-503.64257115,0.00029863,4]
[328854907,1717890656995,-501.2131673,0.00029863,4]
[328854908,1717890657006,-500.63139114,0.00029863,4]
[328854909,1717890657016,-511.95747044,0.00029863,4]
[328854910,1717890657026,-504.31637043,0.00029863,4]
[328854911,1717890657036,-501.96746716,0.00029863,4]
[328854912,1717890657046,-503.78436096,0.00029863,4]
[328854913,1717890657056,-538.65007742,0.00029863,4]
[328854914,1717890657066,-502.53137242,0.00029863,4]
[328854915,1717890657076,-393.08716435,0.00029863,4]
[328854916,1717890657087,-502.35689787,0.00029863,4]
[328854917,1717890657097,-504.19179462,0.00029863,4]
[328854918,1717890657106,-503.27820668,0.00029863,4]
[328854919,1717890657116,-530.11863802,0.00029863,4]
[328854920,1717890657126,-504.74499088,0.00029863,4]
[328854921,1717890657136,-525.39500259,0.00029863,4]
[328854922,1717890657146,-503.58212906,0.00029863,4]
[328854923,1717890657156,-351.61380292,0.00029863,4]
[328854924,1717890657165,-501.82876141,0.00029863,4]
[328854925,1717890657175,-527.01932564,0.00029863,4]
[328854926,1717890657186,-480.76112936,0.00029863,4]
[328854927,1717890657196,-502.61483908,0.00029863,4]
[328854928,1717890657205,-500.0,0.00029863,4]
[328854929,1717890657215,-502.36816123,0.00029863,4]
[328854930,1717890657225,-502.93678482,0.00029863,4]
[328854931,1717890657235,-503.01014961,0.00029863,4]
[328854932,1717890657245,-505.05832155,0.00029863,4]
[328854933,1717890657255,-500.0,0.00029863,4]
[328854934,1717890657265,-502.49352228,0.00029863,4]
[328854935,1717890657275,-504.22725641,0.00029863,4]
[328854936,1717890657285,-506.31377315,0.00029863,4]
[328854937,1717890657295,-515.03538146,0.00029863,4]
[328854938,1717890657305,-501.72770726,0.00029863,4]
[328854939,1717890657315,-503.35406332,0.00029863,4]
[328854940,1717890657325,-502.23907097,0.00029863,4]
[328854941,1717890657335,-507.60870025,0.00029863,4]
[328854942,1717890657345,-526.0174854,0.00029863,4]
[328854943,1717890657355,-505.42398852,0.00029863,4]
[328854944,1717890657365,-500.77836008,0.00029863,4]
[328854945,1717890657376,-500.93685153,0.00029863,4]
[328854946,1717890657386,-495.86532993,0.00029863,4]
[328854947,1717890657395,-500.0,0.00029863,4]
[328854948,1717890657406,-337.56205547,0.00029863,4]
[328854949,1717890657416,-501.51620645,0.00029863,4]
[328854950,1717890657426,-433.04035295,0.00029863,4]
[328854951,1717890657436,-504.4901854,0.00029863,4]
[328854952,1717890657446,-504.15563572,0.00029863,4]
[328854953,1717890657456,-500.0,0.00029863,4]
[328854954,1717890657466,-500.0,0.00029863,4]
[328854955,1717890657477,-500.0,0.00029863,4]
[328854956,1717890657487,-500.0,0.00029863,4]
[328854957,1717890657497,-260.64,0.00029863,4]
[328854958,1717890657507,-500.0,0.00029863,4]
[328854959,1717890657518,-500.0,0.00029863,4]
[328854960,1717890657528,-500.0,0.00029863,4]
[328854961,1717890657541,-286.31,0.00029863,4]
[328854962,1717890657554,-502.19428526,0.00029863,4]
[328854963,1717890657565,-508.77600652,0.00029863,4]
[328854964,1717890657574,-313.24345682,0.00029863,4]
[328854965,1717890657585,-500.0,0.00029863,4]
[328854966,1717890657595,-503.82614246,0.00029863,4]
[328854967,1717890657605,-500.0,0.00029863,4]
[328854968,1717890657615,-501.84554277,0.00029863,4]
[328854969,1717890657627,-500.0,0.00029863,4]
[328854970,1717890657636,-506.6925735,0.00029863,4]
[328854971,1717890657646,-501.39627934,0.00029863,4]
[328854972,1717890657657,-500.0,0.00029863,4]
[328854973,1717890657669,-401.99,0.00029863,4]
[328854974,1717890657679,-508.91247128,0.00029863,4]
[328854975,1717890657690,-500.0,0.00029863,4]
[328854976,1717890657700,-500.0,0.00029863,4]
[328854977,1717890657710,-648.13,0.00029863,4]
[328854978,1717890657721,-500.0,0.00029863,4]
[328854979,1717890657731,-184.84,0.00029863,4]
[328854980,1717890657741,-502.2361197,0.00029863,4]
[328854981,1717890657751,-503.96008897,0.00029863,4]
[328854982,1717890657763,-500.0,0.00029863,4]
[328854983,1717890657773,-507.845901,0.00029863,4]
[328854984,1717890657783,-500.0,0.00029863,4]
[328854985,1717890657793,-500.0,0.00029863,4]
[328854986,1717890657803,-500.0,0.00029863,4]
[328854987,1717890657814,-501.84647825,0.00029863,4]
[328854988,1717890657824,-500.0,0.00029863,4]
[328854989,1717890657834,-512.6150723,0.00029863,4]
[328854990,1717890657844,-500.0,0.00029863,4]
[328854991,1717890657854,-613.1794722,0.00029863,4]
[328854992,1717890657865,-500.0,0.00029863,4]
[328854993,1717890657875,-500.0,0.00029863,4]
[328854994,1717890657885,-305.86,0.00029863,4]
[328854995,1717890657895,-500.0,0.00029863,4]
[328854996,1717890657905,-500.0,0.00029863,4]
[328854997,1717890657915,-500.0,0.00029863,4]
[328854998,1717890657925,-500.0,0.00029863,4]
[328854999,1717890657935,-508.59012447,0.00029863,4]
[328855000,1717890657944,-511.35705709,0.00029863,4]
[328855001,1717890657955,-500.0,0.00029863,4]
[328855002,1717890657965,-500.0,0.00029863,4]
[328855003,1717890657975,-500.0,0.00029863,4]
[328855004,1717890657985,-648.37,0.00029863,4]
[328855005,1717890657995,-500.0,0.00029863,4]
[328855006,1717890658004,-505.30323519,0.00029863,4]
[328855007,1717890658014,-500.0,0.00029863,4]
[328855008,1717890658025,-500.0,0.00029863,4]
[328855009,1717890658035,-504.46626381,0.00029863,4]
[328855010,1717890658045,-500.0,0.00029863,4]
[328855011,1717890658055,-500.0,0.00029863,4]
[328855012,1717890658065,-509.26954569,0.00029863,4]
[328855013,1717890658074,-500.0,0.00029863,4]
[328855014,1717890658084,-500.0,0.00029863,4]
[328855015,1717890658094,-500.0,0.00029863,4]
[328855016,1717890658105,-500.0,0.00029863,4]
[328855017,1717890658115,-500.0,0.00029863,4]
[328855018,1717890658124,-500.0,0.00029863,4]
[328855019,1717890658134,-500.0,0.00029863,4]
[328855020,1717890658144,-500.0,0.00029863,4]
[328855021,1717890658155,-500.0,0.00029863,4]
[328855022,1717890658165,-155.5,0.00029863,4]
[328855023,1717890658175,-500.0,0.00029863,4]
[328855024,1717890658185,-500.0,0.00029863,4]
[328855025,1717890658195,-500.0,0.00029863,4]
[328855026,1717890658205,-500.0,0.00029863,4]
[328855027,1717890658215,-502.31371975,0.00029863,4]
[328855028,1717890658225,-402.94,0.00029863,4]
[328855029,1717890658235,-500.0,0.00029863,4]
[328855030,1717890658245,-500.0,0.00029863,4]
[328855031,1717890658255,-500.0,0.00029863,4]
[328855032,1717890658266,-500.0,0.00029863,4]
[328855033,1717890658277,-277.3,0.00029863,4]
[328855034,1717890658288,-497.86096703,0.00029863,4]
[328855035,1717890658299,-500.0,0.00029863,4]
[328855036,1717890658309,-503.38624248,0.00029863,4]
[328855037,1717890658319,-500.0,0.00029863,4]
[328855038,1717890658328,-293.42339079,0.00029863,4]
[328855039,1717890658338,-190.90026738,0.00029863,4]
[328855040,1717890658347,-503.8813148,0.00029863,4]
[328855041,1717890658357,-500.0,0.00029863,4]
[328855042,1717890658366,-565.89,0.00029863,4]
[328855043,1717890658376,-512.04103889,0.00029863,4]
[328855044,1717890658386,-502.44922276,0.00029863,4]
[328855045,1717890658397,-500.0,0.00029863,4]
[328855046,1717890658408,-500.0,0.00029863,4]
[328855047,1717890658419,-500.0,0.00029863,4]
[328855048,1717890658428,-523.61,0.00029863,4]
[328855049,1717890658440,-555.93151473,0.00029863,4]
[328855050,1717890658450,-502.10749938,0.00029863,4]
[328855051,1717890658460,-621.98,0.00029863,4]
[328855052,1717890658561,-500.0,0.00029863,4]
[328855053,1717890658572,-448.26,0.00029863,4]
[328855054,1717890658583,-585.09,0.00029863,4]
[328855055,1717890658599,-501.89415986,0.00029863,4]
[328855056,1717890658614,-504.8956254,0.00029863,4]
[328855057,1717890658626,-500.0,0.00029863,4]
[328855058,1717890658637,-171.3337159,0.00029863,4]
[328855059,1717890658649,-504.11013449,0.00029863,4]
[328855060,1717890658659,-500.0,0.00029863,4]
[328855061,1717890658671,-500.0,0.00029863,4]
[328855062,1717890658682,-500.0,0.00029863,4]
[328855063,1717890658693,-500.0,0.00029863,4]
[328855064,1717890658703,-287.63,0.00029863,4]
[328855065,1717890658714,-507.22230924,0.00029863,4]
[328855066,1717890658725,-500.0,0.00029863,4]
[328855067,1717890658735,-509.44536806,0.00029863,4]
[328855068,1717890658746,-376.55,0.00029863,4]
[328855069,1717890658757,-511.63219027,0.00029863,4]
[328855070,1717890658767,-500.0,0.00029863,4]
[328855071,1717890658779,-500.0,0.00029863,4]
[328855072,1717890658789,-152.93,0.00029863,4]
[328855073,1717890658799,-509.32682939,0.00029863,4]
[328855074,1717890658809,-500.0,0.00029863,4]
[328855075,1717890658818,-509.32380706,0.00029863,4]
[328855076,1717890658829,-502.13,0.00029863,4]
[328855077,1717890658839,-500.0,0.00029863,4]
[328855078,1717890658850,-500.0,0.00029863,4]
[328855079,1717890658860,-500.0,0.00029863,4]
[328855080,1717890658871,-500.0,0.00029863,4]
[328855081,1717890658881,-367.5,0.00029863,4]
[328855082,1717890658891,-500.0,0.00029863,4]
[328855083,1717890658902,-500.0,0.00029863,4]
[328855084,1717890658913,-502.28065025,0.00029863,4]
[328855085,1717890658924,-508.78715274,0.00029863,4]
[328855086,1717890658935,-500.0,0.00029863,4]
[328855087,1717890658945,-511.40619007,0.00029863,4]
[328855088,1717890658956,-502.91814528,0.00029863,4]
[328855089,1717890658966,-500.0,0.00029863,4]
[328855090,1717890658977,-512.06257765,0.00029863,4]
[328855091,1717890658988,-514.42435802,0.00029863,4]
[328855092,1717890658998,-500.0,0.00029863,4]
[328855093,1717890659008,-509.86093548,0.00029863,4]
[328855094,1717890659019,-500.0,0.00029863,4]
[328855095,1717890659029,-2000.0,0.00029863,30]
[328855096,1717890659039,-2000.0,0.00029863,30]
[328855097,1717890659049,-500.0,0.00029863,4]
[328855098,1717890659059,-334.64,0.00029863,4]
[328855099,1717890659068,-500.0,0.00029863,4]
[328855100,1717890659078,-500.0,0.00029863,4]
[328855101,1717890659089,-506.86727806,0.00029863,4]
[328855102,1717890659099,-500.0,0.00029863,4]
[328855103,1717890659109,-500.0,0.00029863,4]
[328855104,1717890659118,-505.31068492,0.00029863,4]
[328855105,1717890659129,-500.0,0.00029863,4]
[328855106,1717890659139,-513.13668259,0.00029863,4]
[328855107,1717890659149,-500.0,0.00029863,4]
[328855108,1717890659159,-524.35878934,0.00029863,4]
[328855109,1717890659168,-500.0,0.00029863,4]
[328855110,1717890659179,-504.60170128,0.00029863,4]
[328855111,1717890659190,-500.0,0.00029863,4]
[328855112,1717890659200,-500.0,0.00029863,4]
[328855113,1717890659210,-516.4922618,0.00029863,4]
[328855114,1717890659221,-504.25110334,0.00029863,4]
[328855115,1717890659231,-623.60988121,0.00029863,4]
[328855116,1717890659241,-500.0,0.00029863,4]
[328855117,1717890659251,-508.86176871,0.00029863,4]
[328855118,1717890659261,-508.61474972,0.00029863,4]
[328855119,1717890659271,-500.0,0.00029863,4]
[328855120,1717890659282,-500.0,0.00029863,4]
[328855121,1717890659292,-507.14959076,0.00029863,4]
[328855122,1717890659302,-500.0,0.00029863,4]
[328855123,1717890659313,-500.0,0.00029863,4]
[328855124,1717890659323,-503.66186199,0.00029863,4]
[328855125,1717890659334,-500.0,0.00029863,4]
[328855126,1717890659344,-500.0,0.00029863,4]
[328855127,1717890659354,-502.18038561,0.00029863,4]
[328855128,1717890659364,-639.94,0.00029863,4]
[328855129,1717890659374,-500.0,0.00029863,4]
[328855130,1717890659385,-501.73223814,0.00029863,4]
[328855131,1717890659395,-500.0,0.00029863,4]
[328855132,1717890659406,-500.0,0.00029863,4]
[328855133,1717890659416,-500.0,0.00029863,4]
[328855134,1717890659426,-309.76480346,0.00029863,4]
[328855135,1717890659437,-500.0,0.00029863,4]
[328855136,1717890659447,-382.53,0.00029863,4]
[328855137,1717890659458,-500.0,0.00029863,4]
[328855138,1717890659468,-500.0,0.00029863,4]
[328855139,1717890659478,-414.2,0.00029863,4]
[328855140,1717890659489,-350.55,0.00029863,4]
[328855141,1717890659499,-500.0,0.00029863,4]
[328855142,1717890659509,-208.19,0.00029863,4]
[328855143,1717890659519,-501.67587338,0.00029863,4]
[328855144,1717890659530,-500.0,0.00029863,4]
[328855145,1717890659543,-506.56098648,0.00029863,4]
[328855146,1717890659555,-502.44914529,0.00029863,4]
[328855147,1717890659566,-591.8747656,0.00029863,4]
[328855148,1717890659576,-500.0,0.00029863,4]
[328855149,1717890659586,-500.0,0.00029863,4]
[328855150,1717890659597,-430.01,0.00029863,4]
[328855151,1717890659607,-338.03,0.00029863,4]
[328855152,1717890659618,-501.18419991,0.00029863,4]
[328855153,1717890659630,-502.49707964,0.00029863,4]
[328855154,1717890659641,-500.0,0.00029863,4]
[328855155,1717890659651,-505.60591744,0.00029863,4]
[328855156,1717890659661,-502.73974137,0.00029863,4]
[328855157,1717890659672,-501.69859195,0.00029863,4]
[328855158,1717890659682,-504.27631801,0.00029863,4]
[328855159,1717890659692,-500.0,0.00029863,4]
[328855160,1717890659702,-504.47054254,0.00029863,4]
[328855161,1717890659713,-500.0,0.00029863,4]
[328855162,1717890659723,-522.19045969,0.00029863,4]
[328855163,1717890659733,-503.85670842,0.00029863,4]
[328855164,1717890659748,-507.09511092,0.00029863,4]
[328855165,1717890659759,-500.0,0.00029863,4]
[328855166,1717890659770,-355.21277249,0.00029863,4]
[328855167,1717890659780,-500.0,0.00029863,4]
[328855168,1717890659790,-288.58,0.00029863,4]
[328855169,1717890659800,-605.2291612,0.00029863,4]
[328855170,1717890659809,-500.0,0.00029863,4]
[328855171,1717890659819,-520.42831999,0.00029863,4]
[328855172,1717890659829,-500.0,0.00029863,4]
[328855173,1717890659840,-545.79544186,0.00029863,4]
[328855174,1717890659849,-515.54580439,0.00029863,4]
[328855175,1717890659860,-504.26316326,0.00029863,4]
[328855176,1717890659870,-500.0,0.00029863,4]
[328855177,1717890659880,-502.83501405,0.00029863,4]
[328855178,1717890659890,-503.99828646,0.00029863,4]
[328855179,1717890659901,-504.40651255,0.00029863,4]
[328855180,1717890659911,-500.0,0.00029863,4]
[328855181,1717890659922,-500.0,0.00029863,4]
[328855182,1717890659932,-500.0,0.00029863,4]
[328855183,1717890659942,-200.44,0.00029863,4]
[328855184,1717890659953,-500.0,0.00029863,4]
[328855185,1717890659963,-520.46537602,0.00029863,4]
[328855186,1717890659973,-500.0,0.00029863,4]
[328855187,1717890659983,-505.73190705,0.00029863,4]
[328855188,1717890659993,-502.06057274,0.00029863,4]
[328855189,1717890660003,-509.34043718,0.00029863,4]
[328855190,1717890660013,-152.67409629,0.00029863,4]
[328855191,1717890660023,-500.0,0.00029863,4]
[328855192,1717890660034,-500.0,0.00029863,4]
[328855193,1717890660044,-500.0,0.00029863,4]
[328855194,1717890660055,-283.57,0.00029863,4]
[328855195,1717890660066,-505.81226224,0.00029863,4]
[328855196,1717890660076,-305.94212871,0.00029863,4]
[328855197,1717890660087,-500.0,0.00029863,4]
[328855198,1717890660218,-415.39,0.00029863,4]
[328855199,1717890660228,-515.03270218,0.00029863,4]
[328855200,1717890660239,-504.77994987,0.00029863,4]
[328855201,1717890660249,-503.7062057,0.00029863,4]
[328855202,1717890660259,-500.0,0.00029863,4]
[328855203,1717890660269,-500.0,0.00029863,4]
[328855204,1717890660279,-500.0,0.00029863,4]
[328855205,1717890660290,-226.01,0.00029863,4]
[328855206,1717890660300,-507.85111887,0.00029863,4]
[328855207,1717890660310,-500.0,0.00029863,4]
[328855208,1717890660319,-518.89637564,0.00029863,4]
[328855209,1717890660329,-503.76026392,0.00029863,4]
[328855210,1717890660339,-507.49070148,0.00029863,4]
[328855211,1717890660348,-501.74726843,0.00029863,4]
[328855212,1717890660359,-441.23632159,0.00029863,4]
[328855213,1717890660369,-155.14972805,0.00029863,4]
[328855214,1717890660379,-606.42442057,0.00029863,4]
[328855215,1717890660390,-500.0,0.00029863,4]
[328855216,1717890660400,-269.35,0.00029863,4]
[328855217,1717890660410,-500.0,0.00029863,4]
[328855218,1717890660421,-645.23,0.00029863,4]
[328855219,1717890660431,-500.0,0.00029863,4]
[328855220,1717890660441,-500.0,0.00029863,4]
[328855221,1717890660451,-500.0,0.00029863,4]
[328855222,1717890660461,-507.88664189,0.00029863,4]
[328855223,1717890660471,-505.21176166,0.00029863,4]
[328855224,1717890660481,-500.0,0.00029863,4]
[328855225,1717890660491,-505.03457525,0.00029863,4]
[328855226,1717890660501,-500.0,0.00029863,4]
[328855227,1717890660511,-502.10979335,0.00029863,4]
[328855228,1717890660522,-506.44330945,0.00029863,4]
[328855229,1717890660533,-500.0,0.00029863,4]
[328855230,1717890660549,-500.0,0.00029863,4]
[328855231,1717890660559,-411.40382721,0.00029863,4]
[328855232,1717890660569,-506.74429658,0.00029863,4]
[328855233,1717890660580,-500.0,0.00029863,4]
[328855234,1717890660589,-500.0,0.00029863,4]
[328855235,1717890660600,-509.447092,0.00029863,4]
[328855236,1717890660610,-503.20588501,0.00029863,4]
[328855237,1717890660621,-506.43182552,0.00029863,4]
[328855238,1717890660631,-500.0,0.00029863,4]
[328855239,1717890660641,-502.36518905,0.00029863,4]
[328855240,1717890660651,-501.16248327,0.00029863,4]
[328855241,1717890660660,-504.27086235,0.00029863,4]
[328855242,1717890660675,-500.0,0.00029863,4]
[328855243,1717890660685,-460.78,0.00029863,4]
[328855244,1717890660694,-500.0,0.00029863,4]
[328855245,1717890660704,-540.39,0.00029863,4]
[328855246,1717890660714,-503.92765745,0.00029863,4]
[328855247,1717890660723,-500.0,0.00029863,4]
[328855248,1717890660733,-500.0,0.00029863,4]
[328855249,1717890660743,-503.32375371,0.00029863,4]
[328855250,1717890660753,-501.42753912,0.00029863,4]
[328855251,1717890660762,-501.46353761,0.00029863,4]
[328855252,1717890660772,-546.73,0.00029863,4]
[328855253,1717890660781,-647.08414243,0.00029863,4]
[328855254,1717890660791,-593.86,0.00029863,4]
[328855255,1717890660800,-493.084163,0.00029863,4]
[328855256,1717890660810,-500.83631809,0.00029863,4]
[328855257,1717890660820,-501.44886382,0.00029863,4]
[328855258,1717890660832,-500.0,0.00029863,4]
[328855259,1717890660842,-502.3738423,0.00029863,4]
[328855260,1717890660852,-500.0,0.00029863,4]
[328855261,1717890660863,-500.0,0.00029863,4]
[328855262,1717890660872,-500.0,0.00029863,4]
[328855263,1717890660882,-500.0,0.00029863,4]
[328855264,1717890660892,-219.79,0.00029863,4]
[328855265,1717890660903,-502.45310922,0.00029863,4]
[328855266,1717890660914,-551.14410088,0.00029863,4]
[328855267,1717890660924,-512.63313258,0.00029863,4]
[328855268,1717890660934,-503.77974092,0.00029863,4]
[328855269,1717890660943,-500.0,0.00029863,4]
[328855270,1717890660953,-508.70124059,0.00029863,4]
[328855271,1717890660963,-500.0,0.00029863,4]
[328855272,1717890660973,-510.71,0.00029863,4]
[328855273,1717890660983,-500.0,0.00029863,4]
[328855274,1717890660994,-500.0,0.00029863,4]
[328855275,1717890661004,-513.20972235,0.00029863,4]
[328855276,1717890661013,-500.0,0.00029863,4]
[328855277,1717890661023,-507.08922373,0.00029863,4]
[328855278,1717890661033,-500.0,0.00029863,4]
[328855279,1717890661043,-500.0,0.00029863,4]
[328855280,1717890661052,-500.0,0.00029863,4]
[328855281,1717890661063,-572.7,0.00029863,4]
[328855282,1717890661074,-500.0,0.00029863,4]
[328855283,1717890661083,-270.87,0.00029863,4]
[328855284,1717890661093,-505.5485031,0.00029863,4]
[328855285,1717890661104,-504.19094108,0.00029863,4]
[328855286,1717890661114,-500.0,0.00029863,4]
[328855287,1717890661124,-241.88,0.00029863,4]
[328855288,1717890661135,-502.39051692,0.00029863,4]
[328855289,1717890661145,-585.26,0.00029863,4]
[328855290,1717890661155,-502.06255561,0.00029863,4]
[328855291,1717890661164,-503.51343088,0.00029863,4]
[328855292,1717890661174,-497.28566059,0.00029863,4]
[328855293,1717890661183,-500.0,0.00029863,4]
[328855294,1717890661193,-158.17,0.00029863,4]
[328855295,1717890661203,-500.0,0.00029863,4]
[328855296,1717890661213,-508.59372816,0.00029863,4]
[328855297,1717890661223,-502.22051839,0.00029863,4]
[328855298,1717890661233,-500.0,0.00029863,4]
[328855299,1717890661242,-505.29953099,0.00029863,4]
[328855300,1717890661252,-500.0,0.00029863,4]
[328855301,1717890661262,-504.38258355,0.00029863,4]
[328855302,1717890661272,-500.0,0.00029863,4]
[328855303,1717890661282,-500.0,0.00029863,4]
[328855304,1717890661292,-509.74806916,0.00029863,4]
[328855305,1717890661302,-500.0,0.00029863,4]
[328855306,1717890661311,-506.95012477,0.00029863,4]
[328855307,1717890661321,-500.0,0.00029863,4]
[328855308,1717890661330,-505.96170145,0.00029863,4]
[328855309,1717890661340,-505.16281361,0.00029863,4]
[328855310,1717890661350,-500.0,0.00029863,4]
[328855311,1717890661360,-500.0,0.00029863,4]
[328855312,1717890661369,-468.7854703,0.00029863,4]
[328855313,1717890661379,-341.1806487,0.00029863,4]
[328855314,1717890661389,-500.0,0.00029863,4]
[328855315,1717890661399,-500.0,0.00029863,4]
[328855316,1717890661410,-500.0,0.00029863,4]
[328855317,1717890661420,-504.81253414,0.00029863,4]
[328855318,1717890661429,-500.0,0.00029863,4]
[328855319,1717890661439,-410.5,0.00029863,4]
[328855320,1717890661450,-500.88243475,0.00029863,4]
[328855321,1717890661459,-502.98165334,0.00029863,4]
[328855322,1717890661469,-500.0,0.00029863,4]
[328855323,1717890661482,-500.0,0.00029863,4]
[328855324,1717890661493,-500.0,0.00029863,4]
[328855325,1717890661503,-500.0,0.00029863,4]
[328855326,1717890661515,-500.0,0.00029863,4]
[328855327,1717890661526,-500.0,0.00029863,4]
[328855328,1717890661538,-500.0,0.00029863,4]
[328855329,1717890661553,-501.77139113,0.00029863,4]
[328855330,1717890661643,-480.54,0.00029863,4]
[328855331,1717890661655,-242.72,0.00029863,4]
[328855332,1717890661666,-500.0,0.00029863,4]
[328855333,1717890661676,-500.0,0.00029863,4]
[328855334,1717890661686,-500.0,0.00029863,4]
[328855335,1717890661696,-517.16,0.00029863,4]
[328855336,1717890661706,-503.82472667,0.00029863,4]
[328855337,1717890661717,-500.0,0.00029863,4]
[328855338,1717890661728,-500.0,0.00029863,4]
[328855339,1717890661739,-500.0,0.00029863,4]
[328855340,1717890661749,-500.0,0.00029863,4]
[328855341,1717890661760,-500.0,0.00029863,4]
[328855342,1717890661771,-505.7686729,0.00029863,4]
[328855343,1717890661780,-337.88,0.00029863,4]
[328855344,1717890661790,-500.0,0.00029863,4]
[328855345,1717890661801,-500.0,0.00029863,4]
[328855346,1717890661814,-500.0,0.00029863,4]
[328855347,1717890661824,-505.73909073,0.00029863,4]
[328855348,1717890661834,-500.0,0.00029863,4]
[328855349,1717890661844,-500.0,0.00029863,4]
[328855350,1717890661855,-500.0,0.00029863,4]
[328855351,1717890661865,-500.0,0.00029863,4]
[328855352,1717890661875,-500.0,0.00029863,4]
[328855353,1717890661886,-363.41,0.00029863,4]
[328855354,1717890661896,-500.0,0.00029863,4]
[328855355,1717890661905,-500.0,0.00029863,4]
[328855356,1717890661915,-500.0,0.00029863,4]
[328855357,1717890661925,-218.81,0.00029863,4]
[328855358,1717890661935,-502.31932087,0.00029863,4]
[328855359,1717890661945,-500.0,0.00029863,4]
[328855360,1717890661955,-500.0,0.00029863,4]
[328855361,1717890661965,-505.41037126,0.00029863,4]
[328855362,1717890661975,-503.50523167,0.00029863,4]
[328855363,1717890661985,-554.43,0.00029863,4]
[328855364,1717890661996,-503.27768758,0.00029863,4]
[328855365,1717890662006,-500.0,0.00029863,4]
[328855366,1717890662016,-500.0,0.00029863,4]
[328855367,1717890662026,-485.92,0.00029863,4]
[328855368,1717890662036,-506.11106986,0.00029863,4]
[328855369,1717890662046,-502.27699302,0.00029863,4]
[328855370,1717890662055,-503.31149222,0.00029863,4]
[328855371,1717890662065,-500.0,0.00029863,4]
[328855372,1717890662076,-501.65331291,0.00029863,4]
[328855373,1717890662085,-500.0,0.00029863,4]
[328855374,1717890662095,-519.06723932,0.00029863,4]
[328855375,1717890662105,-500.0,0.00029863,4]
[328855376,1717890662115,-187.68935479,0.00029863,4]
[328855377,1717890662124,-500.0,0.00029863,4]
[328855378,1717890662134,-500.0,0.00029863,4]
[328855379,1717890662144,-500.0,0.00029863,4]
[328855380,1717890662153,-500.0,0.00029863,4]
[328855381,1717890662163,-500.0,0.00029863,4]
[328855382,1717890662174,-589.21,0.00029863,4]
[328855383,1717890662183,-500.0,0.00029863,4]
[328855384,1717890662193,-500.0,0.00029863,4]
[328855385,1717890662202,-500.0,0.00029863,4]
[328855386,1717890662212,-500.0,0.00029863,4]
[328855387,1717890662222,-500.0,0.00029863,4]
[328855388,1717890662232,-553.86,0.00029863,4]
[328855389,1717890662242,-500.0,0.00029863,4]
[328855390,1717890662251,-500.0,0.00029863,4]
[328855391,1717890662268,-500.0,0.00029863,4]
[328855392,1717890662288,-241.9,0.00029863,4]
[328855393,1717890662305,-500.0,0.00029863,4]
[328855394,1717890662326,-500.0,0.00029863,4]
[328855395,1717890662349,-503.04123482,0.00029863,4]
[328855396,1717890662368,-500.0,0.00029863,4]
[328855397,1717890662388,-505.62,0.00029863,4]
[328855398,1717890662406,-500.0,0.00029863,4]